[Event "*** SCC Grand Prix: Titled Tuesday Blitz"]
[Site "Chess.com"]
[Date "2020.07.21"]
[Round "3"]
[White "tsvet2005"]
[Black "Rap_woyska"]
[Result "1-0"]
[WhiteElo "2592"]
[BlackElo "2369"]
[TimeControl "180+1"]
[EndTime "10:28:42 PDT"]
[Termination "tsvet2005 won by resignation"]

1. d4 {[%clk 0:03:00.9]} 1... d5 {[%clk 0:02:59.6]} 2. c4 {[%clk 0:03:00.7]}
2... c6 {[%clk 0:03:00.1]} 3. Nf3 {[%clk 0:03:00.4]} 3... Nf6 {[%clk 0:03:00.4]}
4. g3 {[%clk 0:03:00.9]} 4... e6 {[%clk 0:02:42]} 5. Bg2 {[%clk 0:03:00.6]} 5...
dxc4 {[%clk 0:02:38.8]} 6. O-O {[%clk 0:02:53.2]} 6... b5 {[%clk 0:02:35.2]} 7.
a4 {[%clk 0:02:52.9]} 7... Bb7 {[%clk 0:02:33.4]} 8. b3 {[%clk 0:02:52.9]} 8...
cxb3 {[%clk 0:02:26.3]} 9. Qxb3 {[%clk 0:02:53.8]} 9... a6 {[%clk 0:02:26.3]}
10. Ne5 {[%clk 0:02:52]} 10... Be7 {[%clk 0:02:15.9]} 11. Bb2 {[%clk 0:02:35.1]}
11... O-O {[%clk 0:02:15.2]} 12. Rc1 {[%clk 0:02:34.3]} 12... Nd5 {[%clk
0:01:54.2]} 13. Nd2 {[%clk 0:02:33.8]} 13... f6 {[%clk 0:01:23.6]} 14. Nd3
{[%clk 0:02:27.6]} 14... f5 {[%clk 0:00:54.3]} 15. Nc5 {[%clk 0:02:17.3]} 15...
Bc8 {[%clk 0:00:52.2]} 16. Nf3 {[%clk 0:02:11]} 16... Bxc5 {[%clk 0:00:48.8]}
17. dxc5 {[%clk 0:02:04.3]} 17... Nd7 {[%clk 0:00:47.6]} 18. Nd4 {[%clk
0:01:59.9]} 18... bxa4 {[%clk 0:00:37.2]} 19. Qxa4 {[%clk 0:01:55.7]} 19... N7f6
{[%clk 0:00:31.1]} 20. Qxc6 {[%clk 0:01:34.7]} 20... Rb8 {[%clk 0:00:25.6]} 21.
Nxe6 {[%clk 0:01:23.3]} 21... Qe8 {[%clk 0:00:20.2]} 22. Qxe8 {[%clk 0:00:56]}
22... Rxe8 {[%clk 0:00:20.7]} 23. Bxf6 {[%clk 0:00:56]} 23... Nxf6 {[%clk
0:00:21.6]} 24. Nd4 {[%clk 0:00:55.2]} 24... Ne4 {[%clk 0:00:18.7]} 25. c6
{[%clk 0:00:53.9]} 25... Rb4 {[%clk 0:00:18]} 26. e3 {[%clk 0:00:52.6]} 26... g6
{[%clk 0:00:17.7]} 27. Ra5 {[%clk 0:00:46.6]} 27... Kf8 {[%clk 0:00:17.4]} 28.
h4 {[%clk 0:00:44.6]} 28... Ke7 {[%clk 0:00:17.3]} 29. h5 {[%clk 0:00:44.8]}
29... Kd6 {[%clk 0:00:17.5]} 30. Rd1 {[%clk 0:00:38.4]} 30... Kc7 {[%clk
0:00:17.5]} 31. Raa1 {[%clk 0:00:21.1]} 31... Nc3 {[%clk 0:00:17.4]} 32. Rd3
{[%clk 0:00:20]} 32... Ne4 {[%clk 0:00:14.4]} 33. Rdd1 {[%clk 0:00:19.3]} 33...
Nc3 {[%clk 0:00:14.5]} 34. Rdc1 {[%clk 0:00:19.7]} 34... Ne4 {[%clk 0:00:14.4]}
35. Bf1 {[%clk 0:00:19.2]} 35... Rb6 {[%clk 0:00:12.3]} 36. Ra5 {[%clk
0:00:18.4]} 36... Nd6 {[%clk 0:00:10.3]} 37. hxg6 {[%clk 0:00:18.2]} 37... hxg6
{[%clk 0:00:10.1]} 38. Bd3 {[%clk 0:00:18.7]} 38... Ne4 {[%clk 0:00:10.1]} 39.
Rca1 {[%clk 0:00:15.8]} 39... Nd6 {[%clk 0:00:05.8]} 40. Bxa6 {[%clk 0:00:15.6]}
40... Bxa6 {[%clk 0:00:05.9]} 41. Rxa6 {[%clk 0:00:16.5]} 41... Rxa6 {[%clk
0:00:05.1]} 42. Rxa6 {[%clk 0:00:17.4]} 42... Rb8 {[%clk 0:00:04.3]} 43. Ra7+
{[%clk 0:00:17]} 43... Kb6 {[%clk 0:00:04.9]} 44. Rd7 {[%clk 0:00:16.8]} 44...
Kc5 {[%clk 0:00:03.9]} 45. c7 {[%clk 0:00:13.2]} 45... Rc8 {[%clk 0:00:04.4]}
46. Rd8 {[%clk 0:00:13.4]} 46... Kb6 {[%clk 0:00:02.3]} 47. Ne6 {[%clk
0:00:12.4]} 47... Kc6 {[%clk 0:00:01.4]} 48. Kg2 {[%clk 0:00:11.6]} 48... Kb7
{[%clk 0:00:01.5]} 49. Rxd6 {[%clk 0:00:11.1]} 49... Ka7 {[%clk 0:00:01.7]} 50.
Rd8 {[%clk 0:00:11]} 50... Kb7 {[%clk 0:00:02.6]} 51. Rxc8 {[%clk 0:00:11.3]}
51... Kxc8 {[%clk 0:00:03.5]} 1-0

[Event "*** SCC Grand Prix: Titled Tuesday Blitz"]
[Site "Chess.com"]
[Date "2020.07.21"]
[Round "3"]
[White "Quattroporte300"]
[Black "keshka01"]
[Result "0-1"]
[WhiteElo "2330"]
[BlackElo "2564"]
[TimeControl "180+1"]
[EndTime "10:28:45 PDT"]
[Termination "keshka01 won by resignation"]

1. e4 {[%clk 0:03:00.9]} 1... Nf6 {[%clk 0:02:59.8]} 2. e5 {[%clk 0:03:00.8]}
2... Nd5 {[%clk 0:03:00.5]} 3. d4 {[%clk 0:03:00.4]} 3... d6 {[%clk 0:03:00.8]}
4. Nf3 {[%clk 0:02:58.9]} 4... dxe5 {[%clk 0:03:00.7]} 5. dxe5 {[%clk
0:02:54.9]} 5... Bg4 {[%clk 0:02:58.6]} 6. h3 {[%clk 0:02:53.7]} 6... Bh5 {[%clk
0:02:50.6]} 7. Bc4 {[%clk 0:02:44.5]} 7... e6 {[%clk 0:02:48.5]} 8. O-O {[%clk
0:02:43.6]} 8... c6 {[%clk 0:02:41.5]} 9. Re1 {[%clk 0:02:37.6]} 9... Nd7 {[%clk
0:02:41]} 10. Nbd2 {[%clk 0:02:16.9]} 10... Qc7 {[%clk 0:02:37.4]} 11. Qe2
{[%clk 0:02:04.5]} 11... Be7 {[%clk 0:02:23.9]} 12. c3 {[%clk 0:02:03.9]} 12...
O-O {[%clk 0:02:09.9]} 13. a4 {[%clk 0:01:52.8]} 13... a5 {[%clk 0:01:41.9]} 14.
Nf1 {[%clk 0:01:46.5]} 14... Bxf3 {[%clk 0:01:38]} 15. gxf3 {[%clk 0:01:46.1]}
15... f6 {[%clk 0:00:58.7]} 16. f4 {[%clk 0:01:23.9]} 16... fxe5 {[%clk
0:00:56.6]} 17. fxe5 {[%clk 0:01:23.8]} 17... Bc5 {[%clk 0:00:52.2]} 18. Ne3
{[%clk 0:01:17.8]} 18... Qxe5 {[%clk 0:00:29.2]} 19. Nxd5 {[%clk 0:01:16.7]}
19... exd5 {[%clk 0:00:27.2]} 20. Qxe5 {[%clk 0:00:53.5]} 20... Nxe5 {[%clk
0:00:28.1]} 21. Bxd5+ {[%clk 0:00:47.5]} 21... cxd5 {[%clk 0:00:27.3]} 22. Rxe5
{[%clk 0:00:48]} 22... Rxf2 {[%clk 0:00:23.4]} 23. Rxd5 {[%clk 0:00:42.4]} 23...
Rf5+ {[%clk 0:00:22.8]} 24. Rxc5 {[%clk 0:00:40.2]} 24... Rxc5 {[%clk
0:00:23.7]} 25. Be3 {[%clk 0:00:39.8]} 25... Re5 {[%clk 0:00:23.8]} 26. Bd4
{[%clk 0:00:34.4]} 26... Re2 {[%clk 0:00:23.8]} 27. b3 {[%clk 0:00:31.7]} 27...
Rae8 {[%clk 0:00:21.9]} 28. Rf1 {[%clk 0:00:31.1]} 28... Re1 {[%clk 0:00:22.2]}
29. Kf2 {[%clk 0:00:30.2]} 29... Rxf1+ {[%clk 0:00:21.4]} 30. Kxf1 {[%clk
0:00:30.7]} 30... Kf7 {[%clk 0:00:21.2]} 31. Kf2 {[%clk 0:00:29.1]} 31... g5
{[%clk 0:00:20.5]} 32. Bb6 {[%clk 0:00:29]} 32... Ra8 {[%clk 0:00:19.8]} 33. Ke3
{[%clk 0:00:27.9]} 33... Ke6 {[%clk 0:00:20.1]} 34. Ke4 {[%clk 0:00:27.9]} 34...
Ra6 {[%clk 0:00:18.8]} 35. Be3 {[%clk 0:00:27.1]} 35... Rc6 {[%clk 0:00:18.8]}
36. c4 {[%clk 0:00:27]} 36... h6 {[%clk 0:00:18.9]} 37. Bd2 {[%clk 0:00:25.8]}
37... b6 {[%clk 0:00:18.5]} 38. Be3 {[%clk 0:00:22.7]} 38... Rd6 {[%clk
0:00:17.3]} 39. Bf2 {[%clk 0:00:19.6]} 39... Kf6 {[%clk 0:00:16]} 40. Bd4+
{[%clk 0:00:19.1]} 40... Rxd4+ {[%clk 0:00:09.5]} 41. Kxd4 {[%clk 0:00:19.3]}
41... Kf5 {[%clk 0:00:10.4]} 42. c5 {[%clk 0:00:13.4]} 42... bxc5+ {[%clk
0:00:10.8]} 43. Kxc5 {[%clk 0:00:14.2]} 43... h5 {[%clk 0:00:11.7]} 44. b4
{[%clk 0:00:10.4]} 44... g4 {[%clk 0:00:12.2]} 45. hxg4+ {[%clk 0:00:09.5]}
45... hxg4 {[%clk 0:00:12.3]} 46. b5 {[%clk 0:00:08]} 46... g3 {[%clk
0:00:12.8]} 47. b6 {[%clk 0:00:07.9]} 47... g2 {[%clk 0:00:13]} 48. Kb5 {[%clk
0:00:05.9]} 48... g1=Q {[%clk 0:00:13.9]} 49. Kxa5 {[%clk 0:00:06.5]} 49... Qc5+
{[%clk 0:00:12.4]} 50. Ka6 {[%clk 0:00:07]} 50... Qc6 {[%clk 0:00:12.6]} 51. a5
{[%clk 0:00:05.5]} 51... Qa8+ {[%clk 0:00:11.6]} 52. Kb5 {[%clk 0:00:05.7]}
52... Ke6 {[%clk 0:00:11.8]} 53. a6 {[%clk 0:00:05.9]} 53... Kd6 {[%clk
0:00:11.7]} 54. b7 {[%clk 0:00:05.8]} 54... Qa7 {[%clk 0:00:12]} 55. Ka5 {[%clk
0:00:04.4]} 55... Kc5 {[%clk 0:00:11.2]} 56. Ka4 {[%clk 0:00:03.1]} 0-1

[Event "*** SCC Grand Prix: Titled Tuesday Blitz"]
[Site "Chess.com"]
[Date "2020.07.21"]
[Round "3"]
[White "UCantHandleDenker"]
[Black "diablanni"]
[Result "1/2-1/2"]
[WhiteElo "2555"]
[BlackElo "2337"]
[TimeControl "180+1"]
[EndTime "10:28:45 PDT"]
[Termination "Game drawn by agreement"]

1. Nf3 {[%clk 0:02:59.3]} 1... c5 {[%clk 0:02:57.8]} 2. g3 {[%clk 0:02:57.3]}
2... g6 {[%clk 0:02:57.2]} 3. Bg2 {[%clk 0:02:56.7]} 3... Nf6 {[%clk 0:02:57.5]}
4. O-O {[%clk 0:02:57.6]} 4... d6 {[%clk 0:02:54.7]} 5. d3 {[%clk 0:02:57.4]}
5... Nc6 {[%clk 0:02:54.1]} 6. e4 {[%clk 0:02:56.9]} 6... Bg7 {[%clk 0:02:54]}
7. Nbd2 {[%clk 0:02:56.6]} 7... O-O {[%clk 0:02:53.4]} 8. a4 {[%clk 0:02:55.3]}
8... Bg4 {[%clk 0:02:49.5]} 9. h3 {[%clk 0:02:54.9]} 9... Bxf3 {[%clk
0:02:49.3]} 10. Nxf3 {[%clk 0:02:55.3]} 10... Rb8 {[%clk 0:02:48.9]} 11. Re1
{[%clk 0:02:53.3]} 11... Nd7 {[%clk 0:02:47.6]} 12. h4 {[%clk 0:02:52.7]} 12...
a6 {[%clk 0:02:47.4]} 13. h5 {[%clk 0:02:50.3]} 13... b5 {[%clk 0:02:46.6]} 14.
axb5 {[%clk 0:02:49.3]} 14... axb5 {[%clk 0:02:46.6]} 15. h6 {[%clk 0:02:49.8]}
15... Bh8 {[%clk 0:02:43]} 16. c3 {[%clk 0:02:50.3]} 16... e5 {[%clk 0:02:27.5]}
17. Bh3 {[%clk 0:02:35.3]} 17... Re8 {[%clk 0:02:05.8]} 18. Bg5 {[%clk
0:02:13.5]} 18... Qc7 {[%clk 0:02:02.7]} 19. Qe2 {[%clk 0:02:00.4]} 19... Nf8
{[%clk 0:01:57.7]} 20. Ra6 {[%clk 0:01:55.4]} 20... Qb7 {[%clk 0:01:53.3]} 21.
Rea1 {[%clk 0:01:48.9]} 21... Ra8 {[%clk 0:01:53.3]} 22. R6a2 {[%clk 0:01:37.9]}
22... Rxa2 {[%clk 0:01:48]} 23. Rxa2 {[%clk 0:01:37.4]} 23... Ra8 {[%clk
0:01:48.4]} 24. b3 {[%clk 0:01:21.9]} 24... b4 {[%clk 0:01:47.6]} 25. c4 {[%clk
0:01:19.9]} 25... Ra3 {[%clk 0:01:41.5]} 26. Rb2 {[%clk 0:01:09.9]} 26... Qa7
{[%clk 0:01:26]} 27. Be3 {[%clk 0:01:04]} 27... Bf6 {[%clk 0:01:20.7]} 28. Kg2
{[%clk 0:01:02.8]} 28... Nd8 {[%clk 0:01:06.6]} 29. Bg5 {[%clk 0:00:56.8]} 29...
Bxg5 {[%clk 0:01:01.2]} 30. Nxg5 {[%clk 0:00:56.4]} 30... f6 {[%clk 0:00:56.7]}
31. Nf3 {[%clk 0:00:55.2]} 31... Kf7 {[%clk 0:00:54]} 32. Qe3 {[%clk 0:00:53]}
32... Ra2 {[%clk 0:00:47.9]} 33. Re2 {[%clk 0:00:44.8]} 33... Qa3 {[%clk
0:00:46.3]} 34. Rxa2 {[%clk 0:00:41.5]} 34... Qxa2 {[%clk 0:00:44.7]} 35. Nd2
{[%clk 0:00:27.9]} 35... Qc2 {[%clk 0:00:36.4]} 36. Qe1 {[%clk 0:00:18.9]} 36...
Qxd3 {[%clk 0:00:27]} 37. Kg1 {[%clk 0:00:19.2]} 37... Nc6 {[%clk 0:00:21.3]}
38. Bf1 {[%clk 0:00:17.9]} 38... Qc3 {[%clk 0:00:18.1]} 39. Qd1 {[%clk
0:00:16.6]} 39... Nd4 {[%clk 0:00:15.9]} 40. Kg2 {[%clk 0:00:17.2]} 40... Nfe6
{[%clk 0:00:14.2]} 41. Be2 {[%clk 0:00:16.6]} 41... Ke7 {[%clk 0:00:07.6]} 42.
Bg4 {[%clk 0:00:16.4]} 42... f5 {[%clk 0:00:06.5]} 43. exf5 {[%clk 0:00:16]}
43... gxf5 {[%clk 0:00:06.7]} 44. Bxf5 {[%clk 0:00:15.5]} 44... Nxf5 {[%clk
0:00:06.5]} 45. Ne4 {[%clk 0:00:15.9]} 45... Qd4 {[%clk 0:00:03.5]} 46. Qg4
{[%clk 0:00:16]} 46... Nf4+ {[%clk 0:00:02.9]} 47. gxf4 {[%clk 0:00:15.8]} 47...
Qxe4+ {[%clk 0:00:03.8]} 48. f3 {[%clk 0:00:16.3]} 48... Qxf4 {[%clk 0:00:04.1]}
49. Qg8 {[%clk 0:00:15.3]} 49... Qxh6 {[%clk 0:00:03.9]} 50. Qc8 {[%clk
0:00:13.4]} 50... Qg7+ {[%clk 0:00:04]} 51. Kf2 {[%clk 0:00:13.2]} 51... Qg3+
{[%clk 0:00:04.3]} 52. Ke2 {[%clk 0:00:13.2]} 52... Qg2+ {[%clk 0:00:04.8]} 53.
Ke1 {[%clk 0:00:13.5]} 53... Nd4 {[%clk 0:00:04.4]} 54. Qc7+ {[%clk 0:00:12]}
54... Ke6 {[%clk 0:00:04.7]} 55. Qc8+ {[%clk 0:00:12.1]} 55... Kf6 {[%clk
0:00:04.9]} 56. Qf8+ {[%clk 0:00:12.1]} 56... Ke6 {[%clk 0:00:05.1]} 57. Qe8+
{[%clk 0:00:12.3]} 57... Kf6 {[%clk 0:00:05.4]} 58. Qf8+ {[%clk 0:00:12.6]}
58... Ke6 {[%clk 0:00:05.9]} 59. Qe8+ {[%clk 0:00:12.8]} 59... Kf6 {[%clk
0:00:06.2]} 1/2-1/2

[Event "*** SCC Grand Prix: Titled Tuesday Blitz"]
[Site "Chess.com"]
[Date "2020.07.21"]
[Round "3"]
[White "ItsCheckM8Mate"]
[Black "WonderChampion"]
[Result "1-0"]
[WhiteElo "2287"]
[BlackElo "1986"]
[TimeControl "180+1"]
[EndTime "10:28:45 PDT"]
[Termination "ItsCheckM8Mate won by resignation"]

1. e4 {[%clk 0:03:00.9]} 1... c5 {[%clk 0:02:59]} 2. Nf3 {[%clk 0:03:00.4]} 2...
g6 {[%clk 0:02:56.2]} 3. d4 {[%clk 0:02:59.6]} 3... cxd4 {[%clk 0:02:54.6]} 4.
Nxd4 {[%clk 0:03:00.5]} 4... Nc6 {[%clk 0:02:54.3]} 5. c4 {[%clk 0:02:59.8]}
5... Nf6 {[%clk 0:02:53.2]} 6. Nc3 {[%clk 0:02:59.4]} 6... Nxd4 {[%clk
0:02:49.4]} 7. Qxd4 {[%clk 0:02:58.6]} 7... d6 {[%clk 0:02:49.3]} 8. Be3 {[%clk
0:02:56.8]} 8... Bg7 {[%clk 0:02:47.3]} 9. Be2 {[%clk 0:02:56.1]} 9... O-O
{[%clk 0:02:45.1]} 10. Qd2 {[%clk 0:02:55]} 10... Nd7 {[%clk 0:02:42.6]} 11. Rc1
{[%clk 0:02:51.4]} 11... a5 {[%clk 0:02:39.8]} 12. b3 {[%clk 0:02:50.2]} 12...
Nc5 {[%clk 0:02:38.5]} 13. f3 {[%clk 0:02:48.8]} 13... a4 {[%clk 0:02:30.8]} 14.
b4 {[%clk 0:02:46.6]} 14... Nd7 {[%clk 0:02:14.9]} 15. a3 {[%clk 0:02:43.6]}
15... Nf6 {[%clk 0:02:12.2]} 16. O-O {[%clk 0:02:41.2]} 16... Be6 {[%clk
0:02:09.9]} 17. Nd5 {[%clk 0:02:31.6]} 17... Bxd5 {[%clk 0:02:02]} 18. cxd5
{[%clk 0:02:30.8]} 18... Nd7 {[%clk 0:01:58]} 19. Bb5 {[%clk 0:02:29]} 19... f5
{[%clk 0:01:33.9]} 20. Kh1 {[%clk 0:02:15.7]} 20... fxe4 {[%clk 0:01:27.5]} 21.
fxe4 {[%clk 0:02:15.5]} 21... Ne5 {[%clk 0:01:22.4]} 22. Rxf8+ {[%clk
0:02:09.9]} 22... Qxf8 {[%clk 0:01:20.3]} 23. Qf2 {[%clk 0:02:03.9]} 23... Bf6
{[%clk 0:00:58.2]} 24. Qe2 {[%clk 0:01:51.2]} 24... h5 {[%clk 0:00:25.7]} 25.
Rc7 {[%clk 0:01:42.7]} 25... Ng4 {[%clk 0:00:22.8]} 26. Bg1 {[%clk 0:01:35.9]}
26... Qb8 {[%clk 0:00:18.2]} 27. Qc2 {[%clk 0:01:27.6]} 27... Ne5 {[%clk
0:00:16.7]} 28. Bxa4 {[%clk 0:01:05.9]} 28... Kg7 {[%clk 0:00:15.2]} 29. Bb6
{[%clk 0:00:58.2]} 29... Qf8 {[%clk 0:00:13.1]} 30. Bd4 {[%clk 0:00:46.7]} 30...
Ng4 {[%clk 0:00:09]} 31. Bg1 {[%clk 0:00:39.6]} 31... Be5 {[%clk 0:00:07.5]} 32.
h3 {[%clk 0:00:30.7]} 32... Nf6 {[%clk 0:00:05.7]} 33. Rxb7 {[%clk 0:00:22.5]}
33... Rc8 {[%clk 0:00:05.2]} 34. Qb1 {[%clk 0:00:17.4]} 34... Ra8 {[%clk
0:00:04.4]} 35. Bc2 {[%clk 0:00:12.8]} 35... Rxa3 {[%clk 0:00:04.1]} 36. b5
{[%clk 0:00:10.9]} 36... Rg3 {[%clk 0:00:03.8]} 37. Qe1 {[%clk 0:00:08.7]} 37...
Rg5 {[%clk 0:00:03.6]} 38. Be3 {[%clk 0:00:07.8]} 38... Bg3 {[%clk 0:00:03.3]}
39. Qd2 {[%clk 0:00:06.6]} 39... Re5 {[%clk 0:00:02.9]} 40. Bh6+ {[%clk
0:00:06.5]} 40... Kh7 {[%clk 0:00:02.4]} 41. Bxf8 {[%clk 0:00:07.4]} 41... Nxe4
{[%clk 0:00:02.1]} 42. Bxe4 {[%clk 0:00:07.1]} 42... Rxe4 {[%clk 0:00:03]} 43.
Rxe7+ {[%clk 0:00:08]} 43... Rxe7 {[%clk 0:00:02.2]} 44. Bxe7 {[%clk 0:00:08.9]}
44... Kg8 {[%clk 0:00:03.1]} 45. b6 {[%clk 0:00:09]} 45... Be5 {[%clk
0:00:03.3]} 46. b7 {[%clk 0:00:09.9]} 1-0

[Event "*** SCC Grand Prix: Titled Tuesday Blitz"]
[Site "Chess.com"]
[Date "2020.07.21"]
[Round "3"]
[White "platy3"]
[Black "aa175"]
[Result "1-0"]
[WhiteElo "2763"]
[BlackElo "2490"]
[TimeControl "180+1"]
[EndTime "10:28:46 PDT"]
[Termination "platy3 won on time"]

1. e4 {[%clk 0:03:00.9]} 1... c5 {[%clk 0:03:00]} 2. Nf3 {[%clk 0:02:59.3]} 2...
d6 {[%clk 0:03:00]} 3. d4 {[%clk 0:02:59.8]} 3... cxd4 {[%clk 0:03:00.9]} 4.
Nxd4 {[%clk 0:03:00.5]} 4... Nf6 {[%clk 0:03:00.8]} 5. Nc3 {[%clk 0:03:01.1]}
5... a6 {[%clk 0:03:01]} 6. Bg5 {[%clk 0:03:01.7]} 6... Nbd7 {[%clk 0:03:00.6]}
7. Qe2 {[%clk 0:03:00.3]} 7... e6 {[%clk 0:02:57.8]} 8. f4 {[%clk 0:02:59.5]}
8... h6 {[%clk 0:02:58.1]} 9. Bh4 {[%clk 0:02:59.4]} 9... g5 {[%clk 0:02:58]}
10. fxg5 {[%clk 0:02:57.7]} 10... hxg5 {[%clk 0:02:58.9]} 11. Bxg5 {[%clk
0:02:57.9]} 11... b5 {[%clk 0:02:59.5]} 12. a3 {[%clk 0:02:57.7]} 12... Bb7
{[%clk 0:02:59.8]} 13. O-O-O {[%clk 0:02:57.9]} 13... Rc8 {[%clk 0:03:00]} 14.
Qe1 {[%clk 0:02:52.6]} 14... Be7 {[%clk 0:02:25.7]} 15. h4 {[%clk 0:02:50.9]}
15... Rxc3 {[%clk 0:02:03.1]} 16. Qxc3 {[%clk 0:02:01.5]} 16... Nxe4 {[%clk
0:02:00.3]} 17. Bxe7 {[%clk 0:02:01.4]} 17... Nxc3 {[%clk 0:01:54]} 18. Bxd8
{[%clk 0:02:01.5]} 18... Nxd1 {[%clk 0:01:53.6]} 19. Kxd1 {[%clk 0:02:00.1]}
19... Kxd8 {[%clk 0:01:53.6]} 20. Rh2 {[%clk 0:01:54.7]} 20... Ne5 {[%clk
0:01:48.8]} 21. Ke1 {[%clk 0:01:47.2]} 21... Ke7 {[%clk 0:01:27.6]} 22. Be2
{[%clk 0:01:46.8]} 22... f5 {[%clk 0:01:19.1]} 23. g3 {[%clk 0:01:43]} 23... Ng6
{[%clk 0:00:56.8]} 24. Kf2 {[%clk 0:01:37.8]} 24... Kf6 {[%clk 0:00:53.4]} 25.
Bf3 {[%clk 0:01:29.8]} 25... Bxf3 {[%clk 0:00:51.5]} 26. Nxf3 {[%clk 0:01:30.7]}
26... e5 {[%clk 0:00:51.1]} 27. Rh1 {[%clk 0:01:30.1]} 27... d5 {[%clk
0:00:44.4]} 28. c3 {[%clk 0:01:30.1]} 28... f4 {[%clk 0:00:39.2]} 29. gxf4
{[%clk 0:01:04.3]} 29... Nxf4 {[%clk 0:00:38.7]} 30. Ke3 {[%clk 0:01:00.4]}
30... Rg8 {[%clk 0:00:33.2]} 31. Rh2 {[%clk 0:01:00.2]} 31... Rg3 {[%clk
0:00:29.1]} 32. Kf2 {[%clk 0:00:54.3]} 32... Rg4 {[%clk 0:00:18.1]} 33. Ke3
{[%clk 0:00:48]} 33... Kf5 {[%clk 0:00:15.2]} 34. h5 {[%clk 0:00:46.2]} 34... e4
{[%clk 0:00:04.7]} 35. Nd4+ {[%clk 0:00:41]} 35... Ke5 {[%clk 0:00:04.1]} 36. h6
{[%clk 0:00:39.1]} 36... Rg3+ {[%clk 0:00:02.5]} 37. Kf2 {[%clk 0:00:39.7]}
37... Rg8 {[%clk 0:00:01.8]} 38. h7 {[%clk 0:00:36]} 38... Rh8 {[%clk 0:00:02]}
39. Ke3 {[%clk 0:00:36.7]} 39... Ng6 {[%clk 0:00:01.7]} 40. Rh5+ {[%clk
0:00:35.2]} 40... Kf6 {[%clk 0:00:01.8]} 41. Rxd5 {[%clk 0:00:24]} 41... Rxh7
{[%clk 0:00:01.7]} 42. Rd6+ {[%clk 0:00:24.6]} 42... Kg5 {[%clk 0:00:01.7]} 43.
Kxe4 {[%clk 0:00:20.4]} 43... Rh4+ {[%clk 0:00:02.2]} 44. Kd5 {[%clk 0:00:20]}
44... Nf4+ {[%clk 0:00:02.7]} 45. Kc6 {[%clk 0:00:16.5]} 45... Nd3 {[%clk
0:00:02.4]} 46. b4 {[%clk 0:00:13.6]} 46... Ne5+ {[%clk 0:00:02.1]} 47. Kb7
{[%clk 0:00:13.9]} 47... Nc4 {[%clk 0:00:02.1]} 48. Rxa6 {[%clk 0:00:13.6]}
48... Rh6 {[%clk 0:00:01.6]} 49. Rxh6 {[%clk 0:00:12.3]} 49... Kxh6 {[%clk
0:00:02.5]} 50. Nxb5 {[%clk 0:00:12.8]} 50... Kg5 {[%clk 0:00:02.7]} 51. a4
{[%clk 0:00:13.3]} 51... Kf5 {[%clk 0:00:03.2]} 52. a5 {[%clk 0:00:13.6]} 52...
Ke5 {[%clk 0:00:03.8]} 53. a6 {[%clk 0:00:13.9]} 53... Kd5 {[%clk 0:00:04]} 54.
a7 {[%clk 0:00:14.3]} 54... Ke4 {[%clk 0:00:02.1]} 55. a8=Q {[%clk 0:00:14.2]}
55... Kd3 {[%clk 0:00:02.5]} 56. Qd8+ {[%clk 0:00:13.8]} 56... Kc2 {[%clk
0:00:02.6]} 57. Qd4 {[%clk 0:00:14.2]} 57... Nd2 {[%clk 0:00:02.1]} 58. Qxd2+
{[%clk 0:00:14]} 58... Kb3 {[%clk 0:00:01.3]} 59. c4 {[%clk 0:00:13.6]} 1-0

[Event "*** SCC Grand Prix: Titled Tuesday Blitz"]
[Site "Chess.com"]
[Date "2020.07.21"]
[Round "3"]
[White "LuckSlayeer"]
[Black "Bazarov04"]
[Result "1/2-1/2"]
[WhiteElo "2401"]
[BlackElo "2600"]
[TimeControl "180+1"]
[EndTime "10:28:46 PDT"]
[Termination "Game drawn by repetition"]

1. Nf3 {[%clk 0:03:00.9]} 1... Nf6 {[%clk 0:02:59.7]} 2. c4 {[%clk 0:03:00.9]}
2... e6 {[%clk 0:02:59.5]} 3. g3 {[%clk 0:03:00.7]} 3... d5 {[%clk 0:02:59.5]}
4. Bg2 {[%clk 0:03:01]} 4... g6 {[%clk 0:02:51.2]} 5. O-O {[%clk 0:02:59.8]}
5... Bg7 {[%clk 0:02:51.2]} 6. d4 {[%clk 0:02:58.4]} 6... O-O {[%clk 0:02:51.1]}
7. cxd5 {[%clk 0:02:58.9]} 7... exd5 {[%clk 0:02:51]} 8. Nc3 {[%clk 0:02:59.1]}
8... b6 {[%clk 0:02:51]} 9. Bf4 {[%clk 0:02:58.5]} 9... Bb7 {[%clk 0:02:50.8]}
10. Rc1 {[%clk 0:02:59.1]} 10... Na6 {[%clk 0:02:50.2]} 11. Ne5 {[%clk
0:02:55.1]} 11... c5 {[%clk 0:02:49.1]} 12. dxc5 {[%clk 0:02:47.4]} 12... Nxc5
{[%clk 0:02:42.4]} 13. Nb5 {[%clk 0:02:22.8]} 13... Nfe4 {[%clk 0:02:16.3]} 14.
Nd3 {[%clk 0:01:45.6]} 14... a6 {[%clk 0:01:52.5]} 15. Nxc5 {[%clk 0:01:29.4]}
15... bxc5 {[%clk 0:01:51.5]} 16. Nc3 {[%clk 0:01:20.9]} 16... Nxc3 {[%clk
0:01:27.6]} 17. bxc3 {[%clk 0:01:21.8]} 17... Bc6 {[%clk 0:01:12.9]} 18. c4
{[%clk 0:01:16]} 18... Qa5 {[%clk 0:00:54.1]} 19. cxd5 {[%clk 0:01:15.3]} 19...
Bb5 {[%clk 0:00:54]} 20. d6 {[%clk 0:01:05.8]} 20... Rad8 {[%clk 0:00:39.8]} 21.
Rxc5 {[%clk 0:00:50.6]} 21... Qxa2 {[%clk 0:00:39.2]} 22. Bf3 {[%clk 0:00:36.4]}
22... Rfe8 {[%clk 0:00:31.9]} 23. Rc2 {[%clk 0:00:24.2]} 23... Qa3 {[%clk
0:00:31.4]} 24. Qd5 {[%clk 0:00:17.9]} 24... h6 {[%clk 0:00:27.5]} 25. Rc7
{[%clk 0:00:17.7]} 25... Rd7 {[%clk 0:00:18.3]} 26. Rxd7 {[%clk 0:00:16.7]}
26... Bxd7 {[%clk 0:00:19.2]} 27. Rc1 {[%clk 0:00:16]} 27... g5 {[%clk
0:00:18.4]} 28. Bd2 {[%clk 0:00:09.5]} 28... Qb2 {[%clk 0:00:18.3]} 29. Rc7
{[%clk 0:00:08.7]} 29... Be6 {[%clk 0:00:18.4]} 30. Qd3 {[%clk 0:00:08.4]} 30...
Be5 {[%clk 0:00:17.2]} 31. d7 {[%clk 0:00:08]} 31... Rd8 {[%clk 0:00:17.3]} 32.
Rc8 {[%clk 0:00:08.6]} 32... Rxc8 {[%clk 0:00:17.5]} 33. dxc8=Q+ {[%clk
0:00:07.1]} 33... Bxc8 {[%clk 0:00:18.3]} 34. Qd8+ {[%clk 0:00:07.7]} 34... Kg7
{[%clk 0:00:18.5]} 35. Qxc8 {[%clk 0:00:06.1]} 35... Qxd2 {[%clk 0:00:18.8]} 36.
Qxa6 {[%clk 0:00:05.5]} 36... Qd4 {[%clk 0:00:16.7]} 37. Kg2 {[%clk 0:00:05.4]}
37... g4 {[%clk 0:00:16.7]} 38. Bxg4 {[%clk 0:00:04.7]} 38... Qxg4 {[%clk
0:00:16.2]} 39. Qd3 {[%clk 0:00:04.9]} 39... Qe6 {[%clk 0:00:16]} 40. f3 {[%clk
0:00:04.3]} 40... Bf6 {[%clk 0:00:16.1]} 41. e4 {[%clk 0:00:04.1]} 41... Qb6
{[%clk 0:00:16]} 42. f4 {[%clk 0:00:04]} 42... Bd4 {[%clk 0:00:16.4]} 43. Kh3
{[%clk 0:00:03.6]} 43... Qb2 {[%clk 0:00:16.5]} 44. e5 {[%clk 0:00:03]} 44...
Bg1 {[%clk 0:00:16.5]} 45. Kg4 {[%clk 0:00:03]} 45... Qxh2 {[%clk 0:00:15.4]}
46. Qe4 {[%clk 0:00:02.8]} 46... Qb2 {[%clk 0:00:14]} 47. f5 {[%clk 0:00:02.4]}
47... Bd4 {[%clk 0:00:10.6]} 48. f6+ {[%clk 0:00:02.7]} 48... Kg8 {[%clk
0:00:07.3]} 49. Qa8+ {[%clk 0:00:02.9]} 49... Kh7 {[%clk 0:00:07.2]} 50. Qe4+
{[%clk 0:00:03.6]} 50... Kh8 {[%clk 0:00:07.2]} 51. Qa8+ {[%clk 0:00:03.7]}
51... Kh7 {[%clk 0:00:07.2]} 52. Qe4+ {[%clk 0:00:04.3]} 52... Kg8 {[%clk
0:00:06.9]} 53. Qa8+ {[%clk 0:00:04.5]} 53... Kh7 {[%clk 0:00:06.9]} 1/2-1/2